[Event "10th Cherry Blossom Classic 2023"]
[Site "Dulles"]
[Date "2023.05.26"]
[Round "2.14"]
[White "Zhukova, Natalia"]
[Black "Ling, Evan"]
[Result "1-0"]
[ECO "D36"]
[WhiteElo "2324"]
[BlackElo "1952"]
[Annotator "TA"]
[PlyCount "101"]
[EventDate "2023.05.24"]
[EventType "swiss"]
[EventCountry "USA"]
[SourceTitle "playchess.com"]
[Source "ChessBase"]
[SourceQuality "1"]
[TimeControl "5400+30"]

{[%evp 20,101,20,0,14,0,0,14,5,0,0,0,0,13,13,-7,-9,-9,-13,-6,10,12,19,26,18,17,6,25,9,0,19,0,0,0,34,15,15,16,58,51,58,70,158,150,155,0,0,0,0,0,110,112,316,317,329,320,327,279,290,291,359,319,302,0,359,359,507,507,475,475,525,514,622,612,772,757,729,430,446,446,437,431,1279,1264]} 1. c4 {[%emt 0:01:01]} e6 {[%emt 0:01:18]} 2. Nc3 {[%emt 0:00:21]} d5 {[%emt 0:00:05]} 3. d4 {[%emt 0:00:18]} Nf6 {[%emt 0:00:05]} 4. cxd5 {[%emt 0:01:07]} exd5 {[%emt 0:00:05]} 5. Bg5 {[%emt 0:00:11]} Be7 {[%emt 0:01:26]} 6. e3 {[%emt 0:00:19]} O-O {[%emt 0:00:06]} 7. Bd3 {[%emt 0:00:18]} Re8 {[%emt 0:00:07]} 8. Nge2 {[%emt 0:02:33]} h6 {[%emt 0:03:19]} 9. Bh4 {[%emt 0:00:44]} c6 {[%emt 0:00:05]} 10. Qc2 {[%emt 0:06:11]} Nbd7 {[%emt 0:00:33]} 11. f3 {[%emt 0:03:54]} b5 {[%emt 0:00:24] is now more promising than 11...c5. D36: Queen's Gambit Declined: Exchange Variation: Main line (5 Bg5 c6 6 Qc2).} (11... Bd6 $5 {[%cal Re8e3]}) 12. O-O {[%emt 0:03:42]} a6 {[%emt 0:03:45]} 13. Rad1 {[%emt 0:10:53]} Bb7 {[%emt 0:01:05] The position is equal.} 14. Kh1 {[%emt 0:07:01]} c5 {[%emt 0:00:15]} 15. dxc5 {[%emt 0:12:10]} Nxc5 {[%emt 0:07:30]} 16. Bf5 {[%emt 0:01:30]} Qb6 {[%emt 0:08:05]} 17. Bf2 {[%emt 0:10:59] [#]} (17. Nf4 {keeps more tension.} g5 18. b4 gxh4 19. bxc5 Bxc5 20. e4) 17... b4 $146 {[%emt 0:00:15]} ({Predecessor:} 17... Rad8 18. b4 Ne6 19. e4 Qc7 20. exd5 Nxd5 21. Nxd5 Bxd5 22. Qxc7 Nxc7 23. Bb6 Bc4 {0-1 Delgado Romero,M (2282)-Hamidov,A (1530) Gran Canaria Online Blitz 2nd 2022 (7)}) 18. Na4 {[%emt 0:03:01]} Nxa4 {[%emt 0:00:23]} 19. Qxa4 {[%emt 0:00:03]} Bc6 {[%emt 0:06:43]} 20. Qc2 {[%emt 0:02:18] Threatens to win with e4.} Bb5 {[%emt 0:02:35]} 21. Rfe1 {[%emt 0:01:28]} Bf8 {[%emt 0:05:45]} 22. Nd4 {[%emt 0:01:11]} Bd7 {[%emt 0:07:08]} 23. Bxd7 {[%emt 0:03:44]} Nxd7 {[%emt 0:00:12]} 24. Nb3 {[%emt 0:13:00]} Qb5 {[%emt 0:04:25]} (24... Rac8 $5 {[%cal Rc8c2]} 25. Qe2 Qc6 $11) 25. Nd4 {[%emt 0:04:00][%cal Bb3d4,Bd4e2,Be2f4][%mdl 32]} Qb7 {[%emt 0:00:40]} 26. Ne2 {[%emt 0:03:13]} Ne5 {[%emt 0:14:21]} 27. b3 {[%emt 0:00:34]} Rac8 {[%emt 0:02:34]} 28. Qd2 {[%emt 0:00:38]} Red8 {[%emt 0:13:20]} 29. Nf4 {[%emt 0:00:33][%cal Rf4d5]} Rc3 {[%emt 0:02:18]} 30. e4 {[%emt 0:01:54][%cal Rf4d5]} (30. Nxd5 $2 Rd3 $19) 30... d4 {[%emt 0:03:40]} 31. Bxd4 $16 {[%emt 0:02:09] Qf2 is the strong threat.} Bc5 {[%emt 0:00:20]} 32. Bxc3 {[%emt 0:02:42]} ({White has to play} 32. Nd5 $16 Rd3 33. Qc2 (33. Bxc5 Rxd2 34. Rxd2 Kh8 $14) 33... Bxd4 34. Rxd3 Nxd3 35. Qxd3) 32... Rxd2 $11 {[%emt 0:00:05]} 33. Bxd2 {[%emt 0:00:04] Black must now prevent Bc1.} g5 $1 {[%emt 0:00:21]} 34. Nh3 {[%emt 0:02:22]} Qc8 {[%emt 0:03:19] [#]} (34... Nd3 $11 {keeps the balance.} 35. Re2 Nb2) 35. Rf1 $1 $16 {[%emt 0:00:35]} Nd3 $2 {[%emt 0:02:12] [#]} (35... a5 $16) 36. Bxg5 $1 $18 {[%emt 0:00:16][%mdl 64] Discovered Attack} hxg5 {[%emt 0:02:33]} 37. Rxd3 {[%emt 0:00:03]} Be7 {[%emt 0:00:22]} 38. Rd2 {[%emt 0:01:14] Wards off Qc2} Qc3 {[%emt 0:00:56]} 39. Rfd1 {[%emt 0:00:12]} Bc5 {[%emt 0:02:20]} 40. Rd3 {[%emt 0:01:30]} (40. Nxg5 Be3 41. Rd8+ Kg7 $18) 40... Qc2 {[%emt 0:00:19]} 41. R3d2 {[%emt 0:00:09]} Qc3 {[%emt 0:00:01]} 42. Nf2 {[%emt 0:00:32]} ({But not} 42. Nxg5 Be3 43. Rd3 Qc2 $18) 42... Be3 {[%emt 0:00:29]} (42... Bxf2 {is a better defense.} 43. Rxf2 Kg7) 43. Rd3 {[%emt 0:00:30] White is clearly winning.} Qc2 {[%emt 0:00:05]} 44. Ng4 {[%emt 0:00:14]} Bf4 {[%emt 0:00:58]} 45. g3 {[%emt 0:00:10]} Bc7 {[%emt 0:00:11]} 46. R1d2 {[%emt 0:01:17] Prevents Qe2} Qb1+ {[%emt 0:00:14]} 47. Kg2 {[%emt 0:00:31]} Bb6 {[%emt 0:00:04]} 48. Nf2 {[%emt 0:00:33]} a5 {[%emt 0:00:23]} 49. Rd5 {[%emt 0:00:20]} Kf8 {[%emt 0:00:41]} 50. Re2 {[%emt 0:00:33] And now Rd1 would win.} ({Weaker is} 50. Rxg5 Be3 $18) 50... f6 {[%emt 0:00:35]} (50... Qc1 $142 51. Rd1 Qc3) 51. Rd1 {[%emt 0:00:07] Weighted Error Value: White=0.35/Black=0.33} 1-0

[Event "10th Cherry Blossom Classic 2023"]
[Site "Dulles"]
[Date "2023.05.26"]
[Round "2.15"]
[White "Paul, Justin"]
[Black "Vinod, Aarush"]
[Result "1-0"]
[ECO "A49"]
[WhiteElo "2314"]
[BlackElo "1914"]
[Annotator "TA"]
[PlyCount "61"]
[EventDate "2023.05.24"]
[EventType "swiss"]
[EventCountry "USA"]
[SourceTitle "playchess.com"]
[Source "ChessBase"]
[SourceQuality "1"]
[TimeControl "5400+30"]

{[%evp 10,61,23,16,30,-80,-58,-56,-61,-11,-35,-151,-44,-136,-108,-59,0,-69,-64,-53,-58,-43,-50,-62,-56,-210,-207,-276,-259,-501,-484,-466,-235,-224,-227,-346,-179,-185,-134,-123,0,-410,0,0,16,18,404,406,606,599,598,587,699,680]} 1. Nf3 {[%emt 0:00:03]} Nf6 {[%emt 0:01:20]} 2. g3 {[%emt 0:01:00]} g6 {[%emt 0:00:14]} 3. b3 {[%emt 0:01:12]} Bg7 {[%emt 0:00:25]} 4. Bb2 {[%emt 0:00:06]} O-O {[%emt 0:00:29]} 5. Bg2 {[%emt 0:00:34]} d6 {[%emt 0:00:18]} 6. d4 {[%emt 0:00:13]} b5 {[%emt 0:00:46][%cal Bb7b5,Bb5b4][%mdl 32] [#] A49: 1 d4 Nf6 2 Nf3 g6 3 g3: Anti-King's Indian systems.} 7. Ne5 {[%emt 0:05:50] [#]} dxe5 $1 $17 {[%emt 0:00:31]} 8. Bxa8 {[%emt 0:00:26] And now Bg2 would win.} c6 {[%emt 0:00:49] Black is slightly better.} 9. a4 {[%emt 0:08:57]} (9. dxe5 $15 Nd5 10. a4) 9... b4 {[%emt 0:07:39] [#]} 10. a5 $146 {[%emt 0:06:00]} ({Better is} 10. dxe5 $15 Nd5 11. Qd4) ({Predecessor:} 10. dxe5 Nd5 11. Qd4 Nb6 12. Qxb4 Na6 13. Qe4 Nxa8 14. Qxc6 Nb4 15. Qc5 Qb6 16. Qxb6 Nxb6 {0-1 Jones,G (2672)-Sadhwani,R (2616) Titled Tuesday intern op 08th Mar Early blitz 2022 (5)}) 10... e4 {[%emt 0:22:32]} (10... Qd5 $17 11. f3 Rd8) 11. c4 {[%emt 0:02:40] [#]} (11. a6 $15) 11... e3 $1 {[%emt 0:11:44][%mdl 512]} 12. fxe3 {[%emt 0:03:09]} (12. O-O Bh3) 12... Ng4 {[%emt 0:07:17]} (12... Bh3 $15) 13. Qd2 {[%emt 0:08:59]} (13. Qd3 $1 $11) 13... Bh6 $15 {[%emt 0:01:09]} 14. Qxb4 {[%emt 0:01:03] [#]} Nxe3 $1 {[%emt 0:03:16]} 15. Qc3 {[%emt 0:06:45] [#] Wards off Nc2+} (15. Qxb8 $2 Nc2+ 16. Kd1 Nxd4 $19) 15... e5 $1 {[%emt 0:08:16] aiming for ...exd4.} 16. d5 {[%emt 0:05:44]} (16. dxe5 Qd1+ 17. Kf2 Ng4+ 18. Kg2 Qxe2+ 19. Kh3 Nxe5+ 20. Kh4 Qh5#) 16... cxd5 {[%emt 0:06:03]} 17. Bxd5 {[%emt 0:02:29] [#]} (17. cxd5 $15 Na6 18. Na3 (18. Qxe5 $2 Nc2+ 19. Kf2 f6 $19) 18... Ng2+ 19. Kd1 (19. Kf2 Bh3 $11)) 17... Nc6 $1 $19 {[%emt 0:04:55][%mdl 512] Hoping for ...Nd4.} 18. Bf3 {[%emt 0:08:14]} (18. Bxc6 Qd1+ 19. Kf2 Ng4+ 20. Kg2 Qxe2+ 21. Kh3 Ne3+ 22. Kh4 Qh5#) (18. Rf1 Nb4) 18... Nd4 $1 {[%emt 0:05:19] ( -> ...Nxf3+). Excellent horsemanship.} 19. Na3 $2 {[%emt 0:03:58]} (19. Nd2 Nec2+ 20. Kf2) 19... Qf6 {[%emt 0:02:29]} 20. Rf1 {[%emt 0:04:39]} (20. Rg1 $2 Nxf3+ 21. exf3 Qxf3) 20... Nxf1 {[%emt 0:07:31]} (20... Bg4 $142 21. Nb5 Ndc2+ 22. Kf2 Bxf3 23. exf3 Rd8) 21. Kxf1 {[%emt 0:00:06]} Bb7 $1 {[%emt 0:01:28] ...Rd8 is the strong threat.} 22. Kg2 {[%emt 0:01:19] [#]} (22. Nc2 {keeps fighting.} Nxc2 {[%mdl 64] Deflection} 23. Qxc2 Bxf3 24. exf3 Qxf3+ 25. Qf2 Qxb3 26. Re1) 22... Nxe2 {[%emt 0:06:21]} (22... Bd2 $142 $1 {[%cal Rd2c3]} 23. Qd3 (23. Qxd2 $2 Bxf3+ 24. Kf2 Bxe2+ 25. Kg2 Qc6+ 26. Kf2 Qf6+ 27. Kg2 Bf3+ 28. Kf1 Bg2+ {[%mdl 64] Decoy} 29. Kxg2 Qf3+ 30. Kh3 Qf5+ 31. Kg2 Qe4+ 32. Kh3 Nf3 $19) 23... Nxf3 24. exf3 Rd8) 23. Qd3 {[%emt 0:00:34] [#]} Rd8 {[%emt 0:00:20]} (23... Bxf3+ 24. Qxf3 Qxf3+ 25. Kxf3 Nd4+ 26. Bxd4 exd4 27. Rd1 $14 (27. Nb5 Re8 $14)) (23... Nc1 $1 $19 {[%cal Rc1d3]} 24. Bxc1 e4 25. Bxe4 Qf5) 24. Bd5 $17 {[%emt 0:01:16]} (24. Qxe2 Rd2 25. Kh3 Rxe2 26. Bxe2 Qf2) 24... Qe6 {[%emt 0:00:44]} (24... Rxd5 $17 25. cxd5 Nd4) 25. Rd1 {[%emt 0:02:43][%mdl 8192]} (25. Qxe2 $11 Rxd5 26. cxd5 Qxd5+ 27. Kf2 (27. Kh3 $2 Qe6+ 28. Qg4 Bg2+ {[%mdl 64] Deflection} 29. Kxg2 Qxg4 $19) 27... Qg2+ 28. Ke1 Qh1+ 29. Qf1 Qe4+ 30. Qe2 Qh1+ 31. Qf1 Qe4+ 32. Qe2 Qh1+) 25... Qg4 $2 {[%emt 0:00:32]} (25... Bxd5+ 26. cxd5 Qg4 27. Bxe5 $16) (25... Rxd5 $1 $19 26. cxd5 Nd4) 26. Bxe5 $11 {[%emt 0:06:33] Strongly threatening Qf3.} Nc1 {[%emt 0:00:31]} (26... Qh5 $5 {[%cal Rh5e5]} 27. Qe4 Bc8 $14) 27. Qf3 $40 {[%emt 0:05:59][%csl Gd5][%cal Rf3f7][%mdl 128] White has some attack. Really sharp!} (27. Qc2 $2 Qh5 28. h4 (28. Rxc1 $2 Bxc1 29. Qxc1 Bxd5+ 30. cxd5 Qxe5 $19) 28... Bxd5+ 29. cxd5 Qxe5 $19) 27... Qe6 {[%emt 0:00:30][%mdl 8192]} (27... Qxf3+ $11 {and Black is okay.} 28. Kxf3 Nxb3) 28. Bb2 $18 {[%emt 0:03:03]} (28. Bxb7 Rxd1 29. Qxd1 Qxe5 $11) 28... Nxb3 {[%emt 0:00:28]} (28... Qe7 $142 29. Kf1 (29. Bxb7 Rxd1 30. Qxd1 Qxb7+ 31. Qf3 Qxf3+ {[%mdl 64] Remove Defender} 32. Kxf3 Nxb3 $16) (29. Bxf7+ Qxf7 {[%mdl 64] Pin} 30. Rxd8+ Bf8 $16) 29... Bxd5 30. cxd5 f5 31. Bxc1 Bxc1 {[%mdl 64] Remove Defender}) 29. Bxb7 {[%emt 0:01:16] White is clearly winning.} (29. Qxb3 Qe2+ 30. Kh1 Rxd5 31. cxd5 Qe4+ 32. Kg1 Be3+) 29... Nd2 {[%emt 0:00:32]} 30. Qf2 {[%emt 0:03:01]} Be3 {[%emt 0:00:30]} 31. Qf6 {[%emt 0:00:18] An exciting game.   Weighted Error Value: White=0.71/Black=0.77} 1-0

[Event "10th Cherry Blossom Classic 2023"]
[Site "Dulles"]
[Date "2023.05.26"]
[Round "2.16"]
[White "Aripov, Iskandar"]
[Black "Marjanovic, Annamaria"]
[Result "0-1"]
[ECO "B51"]
[WhiteElo "2211"]
[BlackElo "2273"]
[Annotator "TA"]
[PlyCount "74"]
[EventDate "2023.05.24"]
[EventType "swiss"]
[EventCountry "USA"]
[SourceTitle "playchess.com"]
[Source "ChessBase"]
[SourceQuality "1"]
[TimeControl "5400+30"]

{[%evp 9,74,20,15,16,13,16,45,11,33,-31,20,21,17,23,10,12,27,14,13,-51,-39,-116,-47,-61,-43,-61,-47,-49,0,0,0,0,0,0,0,-121,-122,-127,-122,-122,-124,-126,-114,-135,-46,-33,-39,-53,-47,-45,-27,-41,-44,-26,0,0,0,-35,-62,-235,-251,-625,-606,-29996,-29990,-29990,-29991]} 1. e4 {[%emt 0:01:42]} c5 {[%emt 0:00:18]} 2. Nf3 {[%emt 0:00:19]} d6 {[%emt 0:00:07]} 3. Bb5+ {[%emt 0:00:26]} Nd7 {[%emt 0:00:08]} 4. O-O {[%emt 0:00:06]} a6 {[%emt 0:00:35]} 5. Bd3 {[%emt 0:00:43]} Ngf6 {[%emt 0:01:40]} 6. c3 {[%emt 0:00:31] B51: Sicilian: Moscow Variation (3 Bb5+) without 3...Bd7.} b5 {[%emt 0:00:52]} 7. Bc2 {[%emt 0:02:42]} c4 {[%emt 0:01:43]} 8. b3 {[%emt 0:02:02] White is slightly better.} Bb7 {[%emt 0:12:11]} 9. Re1 {[%emt 0:05:25]} (9. Qe2 $14) 9... e5 {[%emt 0:07:01]} (9... e6 $1 $15) 10. bxc4 $11 {[%emt 0:04:21]} bxc4 {[%emt 0:00:34]} 11. Na3 {[%emt 0:00:23]} Rc8 {[%emt 0:03:56]} 12. Rb1 {[%emt 0:01:22]} Ba8 {[%emt 0:04:04]} 13. Qe2 $1 {[%emt 0:04:15]} Qc7 {[%emt 0:07:30] [#]} 14. Nh4 $146 {[%emt 0:21:49]} ({White should play} 14. d3 $11) ({Predecessor:} 14. Bb2 Be7 15. d3 cxd3 16. Bxd3 Nc5 17. Nd2 Bb7 18. Nac4 O-O 19. f3 d5 20. exd5 Nxd3 21. Qxd3 Bxd5 22. Rxe5 {0-1 Egin,V (2395)-Gupta,A (2619) Agzamov Memorial 08th 2014 (6)}) 14... g6 {[%emt 0:13:07] Hoping for ...Be7.} 15. d3 {[%emt 0:04:40]} (15. d4 $1 $15) 15... cxd3 {[%emt 0:03:13]} (15... d5 $1 $17 {...Be7 would be deadly.} 16. exd5 Nxd5) 16. Bxd3 $15 {[%emt 0:00:08]} Nc5 {[%emt 0:05:33]} 17. Bxa6 {[%emt 0:03:39]} Nxa6 {[%emt 0:00:34]} 18. Qxa6 {[%emt 0:00:14]} Bxe4 {[%emt 0:09:42]} (18... Be7 $1 $15) 19. Bg5 $11 {[%emt 0:14:36]} Ra8 {[%emt 0:07:22]} 20. Qe2 {[%emt 0:18:33]} Bxb1 {[%emt 0:02:31]} 21. Bxf6 {[%emt 0:00:09]} Be7 $1 {[%emt 0:01:52]} (21... Rxa3 $2 {gets mated.} 22. Qb5+ (22. Bxh8 Bxa2 23. Qb5+ Kd8 $17) 22... Qd7 23. Qb8+) 22. Nb5 {[%emt 0:01:02]} (22. Bxh8 $11 Rxa3 23. Qb5+ Kf8 24. Qxb1 (24. Qb4 $2 Rxc3 25. Qxb1 Bxh4 $19)) 22... Qc5 $17 {[%emt 0:01:02]} 23. Bxh8 {[%emt 0:07:46]} Rxa2 {[%emt 0:02:08]} 24. Nxd6+ {[%emt 0:01:36]} Bxd6 {[%emt 0:02:48]} 25. Qf3 {[%emt 0:00:48] [#]} Bd3 {[%emt 0:02:37][%mdl 576] Deflection, Back Rank} 26. Bf6 {[%emt 0:02:20] [#]} (26. Kh1 Qxc3) 26... e4 {[%emt 0:01:44]} 27. Bd4 $15 {[%emt 0:00:27] White is weak on the light squares} Qb5 {[%emt 0:01:16]} 28. Qf6 {[%emt 0:00:35]} Be7 {[%emt 0:00:24] Active counter play! This pair of bishops is nice.} 29. Qh8+ {[%emt 0:00:19]} Kd7 {[%emt 0:01:30] aiming for ...Re2.} 30. Qxh7 {[%emt 0:00:06]} Re2 {[%emt 0:07:28][%cal Re2e1]} 31. Ra1 {[%emt 0:01:15][%cal Oh4g6] Black must now prevent Nxg6!} Ra2 {[%emt 0:00:00][%cal Ra2a1][%mdl 1088] Deflection, Back Rank. Black has compensation.} 32. Re1 {[%emt 0:00:12]} Re2 {[%emt 0:00:00][%cal Re2e1]} 33. Ra1 {[%emt 0:00:14][%cal Oh4g6] Threatens to win with Nxg6!} Qa5 $40 {[%emt 0:00:40][%cal Ra5a1][%mdl 192] Deflection, Back Rank. White needs to defend precisely.} 34. Rf1 {[%emt 0:01:12] [#] Now White is beyond hope.} (34. Rd1 $15 Qa4 35. Rf1) 34... Ra2 $1 $19 {[%emt 0:00:09]} 35. Qxf7 $2 {[%emt 0:01:04]} (35. Nxg6 fxg6 36. Bf6) 35... Ra1 {[%emt 0:00:17][%csl Gd3][%cal Ra1f1][%mdl 64] Pin} 36. g3 {[%emt 0:00:54]} Bxf1 {[%emt 0:00:19][%cal Rf1h3]} 37. h3 {[%emt 0:00:21]} Bc4+ {[%emt 0:00:05] Magnificent play by Marjanovic!   Weighted Error Value: White=0.48/Black=0.13 (very precise)} 0-1

[Event "10th Cherry Blossom Classic 2023"]
[Site "Dulles"]
[Date "2023.05.26"]
[Round "2.17"]
[White "Tanenbaum, Zachary"]
[Black "Slate, Kent"]
[Result "1-0"]
[ECO "B30"]
[WhiteElo "2261"]
[BlackElo "1989"]
[Annotator "TA"]
[PlyCount "71"]
[EventDate "2023.05.24"]
[EventType "swiss"]
[EventCountry "USA"]
[SourceTitle "playchess.com"]
[Source "ChessBase"]
[SourceQuality "1"]
[TimeControl "5400+30"]

{[%evp 13,71,29,28,29,32,22,29,2,34,21,34,38,30,18,258,267,338,318,447,450,462,459,444,429,485,479,486,486,488,493,495,494,507,501,501,501,501,500,500,503,497,502,485,485,558,555,544,543,628,620,712,710,775,766,1025,1022,964,904,884,828]} 1. e4 {[%emt 0:00:21]} c5 {[%emt 0:01:03]} 2. Nf3 {[%emt 0:00:02][%cal Bg1f3,Bf3d2,Bd2f1,Bf1e3][%mdl 32]} Nc6 {[%emt 0:00:08]} 3. Nc3 {[%emt 0:00:01]} e5 {[%emt 0:01:14]} 4. Bc4 {[%emt 0:00:02]} Be7 {[%emt 0:00:12]} 5. d3 {[%emt 0:00:04]} d6 {[%emt 0:00:12]} 6. Nd2 {[%emt 0:00:08]} Nf6 {[%emt 0:00:10]} 7. Nf1 {[%emt 0:00:08]} Bg4 {[%emt 0:02:26]} 8. f3 {[%emt 0:00:03] B30: Sicilian: 2...Nc6 3 Bb5, lines without ...g6.} Be6 {[%emt 0:00:07]} 9. Ne3 {[%emt 0:00:56]} O-O {[%emt 0:01:41]} 10. Ncd5 {[%emt 0:07:04] [#] White has an edge.} Nh5 $146 {[%emt 0:12:52]} ({Predecessor:} 10... a6 11. a3 Nd7 12. O-O Bg5 13. c3 Bxe3+ 14. Bxe3 Ne7 15. f4 Bxd5 16. exd5 b5 {0-1 Svane,F (2438)-Le,T (2514) Titled Tuesday intern op 24th Aug blitz 2021 (7)}) 11. a4 {[%emt 0:20:49]} Bh4+ {[%emt 0:07:15]} 12. g3 {[%emt 0:00:08]} Bg5 {[%emt 0:05:34]} 13. O-O {[%emt 0:01:06] aiming for f4.} Bh3 $2 {[%emt 0:05:17] [#]} (13... Bxe3+ $11 {and Black is okay.} 14. Bxe3 Ne7) 14. f4 $1 $18 {[%emt 0:13:48][%mdl 64] Discovered Attack} exf4 {[%emt 0:13:00]} (14... Nxf4 15. gxf4) 15. Qxh5 {[%emt 0:03:40]} fxe3 {[%emt 0:01:57]} (15... Bxf1 {is a better defense.} 16. gxf4 (16. Nxf1 g6 $18) 16... Bxd3) 16. Qxh3 {[%emt 0:01:45] White is clearly winning.} e2 {[%emt 0:00:07]} 17. Re1 {[%emt 0:00:08]} Bxc1 {[%emt 0:16:23]} 18. Raxc1 {[%emt 0:00:53]} Nd4 {[%emt 0:01:58]} 19. Qg2 {[%emt 0:00:56] Prevents Nf3+.} a6 {[%emt 0:01:04]} 20. c3 {[%emt 0:00:27]} Nc6 {[%emt 0:00:19]} 21. Qxe2 {[%emt 0:00:13]} Rb8 {[%emt 0:00:08]} 22. Rf1 {[%emt 0:01:43]} b5 {[%emt 0:00:20]} 23. axb5 {[%emt 0:01:07]} axb5 {[%emt 0:00:06]} 24. Bb3 {[%emt 0:00:09][%cal Bc4b3,Bb3a4,Ba4c6,Bc6d5][%mdl 32]} b4 {[%emt 0:04:13]} 25. Ba4 {[%emt 0:02:28]} Ne7 {[%emt 0:04:06]} 26. Nxe7+ {[%emt 0:00:31]} Qxe7 {[%emt 0:00:06]} 27. Bc6 {[%emt 0:00:25]} Kh8 {[%emt 0:00:23]} 28. Bd5 {[%emt 0:00:26]} f5 {[%emt 0:00:34]} 29. Qd2 {[%emt 0:03:06]} ({Weaker is} 29. Rxf5 Rxf5 30. Re1 Rff8 $17) 29... fxe4 {[%emt 0:03:49]} 30. dxe4 {[%emt 0:02:25]} h6 {[%emt 0:02:17]} 31. Rxf8+ {[%emt 0:00:36]} Qxf8 {[%emt 0:00:07]} 32. Rf1 {[%emt 0:00:19][%cal Bc1f1,Bf1f7,Bf7f8][%mdl 32]} Qd8 {[%emt 0:01:20]} 33. c4 {[%emt 0:02:32] [#] Black must now prevent Rf7.} Qe7 {[%emt 0:02:01]} 34. Rf7 {[%emt 0:00:41]} Qe5 {[%emt 0:00:22]} 35. Qf2 {[%emt 0:00:20]} Re8 {[%emt 0:01:32]} 36. Rf8+ {[%emt 0:00:10] Black did not feel at home in the position after the opening.   Weighted Error Value: White=0.03 (flawless) /Black=0.39} 1-0